bitfinex/quotes_ETHUSD_20250331
["timestamp","ask_amount","ask_price","bid_price","bid_amount"]
[1743389850609,0.7864,1814.6,1814.2,5.51207]
[1743389850860,6.29731,1814.6,1814.2,5.51207]
[1743389851039,0.629731,1814.5,1814.2,5.51207]
[1743389852847,6.140921,1814.5,1814.1,5.51237]
[1743389853051,0.629731,1814.5,1814.2,6.049]
[1743389853258,5.51166,1814.4,1813.9,31.805]
[1743389853430,0.7864,1814.3,1814.0,6.047]
[1743389853816,0.7864,1814.3,1814.0,11.55952]
[1743389854116,0.7864,1814.3,1814.0,17.07206]
[1743389856017,0.7864,1814.3,1814.1,5.51229]
[1743389856218,5.9,1814.4,1814.2,11.02402]
[1743389856521,5.9,1814.4,1814.3,5.51176]
[1743389856720,5.9,1814.4,1814.2,5.51195]
[1743389857148,5.9,1814.4,1814.1,5.51232]
[1743389857345,7.4827451,1814.4,1814.1,11.02456]
[1743389857539,5.9,1814.4,1814.1,5.51224]
[1743389858143,5.9,1814.4,1814.2,5.51206]
[1743389858328,5.9,1814.4,1814.1,5.51224]
[1743389859126,5.9,1814.4,1814.1,11.02441]
[1743389859323,5.9,1814.4,1814.1,5.51217]
[1743389859550,7.4827451,1814.4,1814.1,5.51217]
[1743389860124,12.9942151,1814.4,1814.0,5.51265]
[1743389860337,12.9942151,1814.4,1814.1,5.998]
[1743389860552,12.9942151,1814.4,1814.1,11.51036]
[1743389860758,1.29942151,1814.3,1814.1,11.51036]
[1743389860926,7.4827451,1814.4,1814.2,5.51207]
[1743389861265,7.4827451,1814.4,1814.2,5.51191]
[1743389861444,5.9,1814.4,1814.3,5.51176]
[1743389866072,5.9,1814.4,1814.3,11.47676]
[1743389866649,5.9,1814.7,1814.4,5.51118]
[1743389867171,5.9,1814.7,1814.3,11.47673]
[1743389867377,6.10088,1814.6,1814.3,5.965]
[1743389867947,6.29348,1814.5,1814.3,5.959]
[1743389869075,0.7822,1814.5,1814.3,11.47076]
[1743389869442,0.7822,1814.5,1814.3,5.959]
[1743389869647,1.470506,1814.5,1814.3,5.959]
[1743389869859,1.470506,1814.5,1814.3,11.47073]
[1743389870174,12.19279,1814.7,1814.3,11.47073]
[1743389870350,12.19279,1814.7,1814.3,16.98237]
[1743389871370,12.19279,1814.7,1814.3,11.47064]
[1743389872177,12.19279,1814.7,1814.4,5.51141]
[1743389872178,6.6822,1814.7,1814.4,5.51141]
[1743389873569,6.6822,1814.7,1814.4,11.02267]
[1743389873880,6.6822,1814.7,1814.3,5.959]
[1743389873881,5.9,1814.7,1814.6,5.51085]
[1743389876280,0.7822,1814.9,1814.6,5.51085]
[1743389876494,6.6822,1815.1,1814.8,5.51024]
[1743389876661,6.6822,1815.1,1814.9,5.50975]
[1743389877185,6.6822,1815.1,1814.8,5.51024]
[1743389877495,6.6822,1815.1,1814.7,11.41653]
[1743389877496,8.201325,1815.1,1814.7,11.41653]
[1743389877682,8.201325,1815.1,1814.7,16.92694]
[1743389877857,8.201325,1815.1,1814.8,5.51015]
[1743389878485,0.7822,1815.4,1814.9,5.5097]
[1743389878668,9.29076,1815.4,1815.0,5.50964]
[1743389878880,0.7822,1815.4,1815.1,5.892]
[1743389879076,0.7822,1815.4,1815.2,5.5088]
[1743389879979,3.7822,1815.4,1814.9,5.50977]
[1743389880194,10.219873,1815.4,1815.1,5.887]
[1743389880690,10.219873,1815.4,1815.1,5.889]
[1743389881862,10.219873,1815.4,1815.0,5.878]
[1743389882061,10.219863,1815.4,1815.0,11.38751]
[1743389882260,5.50889,1815.3,1814.8,37.32405]
[1743389882464,5.50914,1815.2,1814.9,5.876]
[1743389884067,11.40879,1815.3,1814.9,11.38575]
[1743389884268,5.9,1815.3,1815.0,5.50957]
[1743389884480,5.9,1815.3,1814.9,12.18363]
[1743389884674,5.9,1815.3,1815.0,11.01904]
[1743389884865,5.9,1815.3,1815.1,5.50929]
[1743389885065,5.9,1815.3,1815.0,5.50943]
[1743389885287,11.40875,1815.3,1814.9,12.18362]
[1743389885491,5.9,1815.3,1814.9,17.69354]
[1743389886294,11.40875,1815.3,1814.9,6.30759]
[1743389886593,5.9,1815.3,1815.0,11.3664]
[1743389887186,3.7822,1815.4,1815.0,16.87583]
[1743389887594,3.7822,1815.4,1815.0,11.3664]
[1743389887797,3.7822,1815.4,1815.1,5.50932]
[1743389888301,3.7822,1815.4,1815.1,5.50915]
[1743389888471,3.7822,1815.4,1815.1,11.01831]
[1743389888664,0.7822,1815.4,1815.0,11.36662]
[1743389888880,6.2908,1815.4,1815.0,11.36662]
[1743389889907,6.2908,1815.4,1815.0,16.87607]
[1743389890503,6.2908,1815.4,1815.0,11.36645]
[1743389890709,13.56938,1815.4,1815.0,11.36645]
[1743389891011,5.50906,1815.2,1814.8,37.32406]
[1743389891209,5.50902,1815.3,1814.9,11.34172]
[1743389891387,5.50902,1815.3,1814.9,16.85149]
[1743389891791,6.29064,1815.4,1815.0,5.50961]
[1743389891978,9.29065,1815.4,1815.0,11.01913]
[1743389892184,9.29065,1815.4,1815.0,5.50952]
[1743389892382,11.36053,1815.4,1815.0,5.50952]
[1743389893113,5.85208,1815.4,1815.0,5.50952]
[1743389893410,3.816,1815.6,1815.3,5.50854]
[1743389893795,9.32382,1815.6,1815.3,5.50854]
[1743389893989,9.32382,1815.6,1815.2,5.50894]
[1743389894194,9.32382,1815.6,1815.3,5.817]
[1743389895800,3.816,1815.6,1815.3,11.3256]
[1743389896513,0.1,1815.9,1815.6,5.50763]
[1743389896813,3.1,1815.9,1815.7,5.829]
[1743389897012,0.1,1815.9,1815.7,5.829]
[1743389898505,0.1,1815.9,1815.7,11.33649]
[1743389898917,0.1,1815.9,1815.8,5.50721]
[1743389899286,0.1,1815.9,1815.7,11.33649]
[1743389899891,0.1,1815.9,1815.8,5.81]
[1743389900318,6.42308,1815.9,1815.6,5.809]
[1743389900521,5.50764,1815.7,1815.3,5.50872]
[1743389901215,11.40728,1815.8,1815.3,5.50855]
[1743389901420,12.939608,1815.8,1815.4,11.01666]
[1743389901601,7.432328,1815.8,1815.4,5.50826]
[1743389901803,5.9,1815.8,1815.5,5.50812]
[1743389903923,5.9,1815.8,1815.3,5.50868]
[1743389904104,5.50762,1815.7,1815.4,5.8]
[1743389904293,11.40722,1815.8,1815.4,11.3084]
[1743389904493,11.40722,1815.8,1815.4,16.8166]
[1743389904922,12.639542,1815.8,1815.4,11.3082]
[1743389905112,12.639542,1815.8,1815.4,11.3083]
[1743389907224,12.639542,1815.8,1815.4,16.81659]
[1743389907626,7.132322,1815.8,1815.5,5.50812]
[1743389908014,5.9,1815.8,1815.5,5.50793]
[1743389908219,5.9,1815.8,1815.6,5.50764]
[1743389908928,5.9,1815.8,1815.7,6.30891]
[1743389909231,0.1,1815.9,1815.7,6.30891]
[1743389909421,0.1,1815.9,1815.7,0.8014]
[1743389910242,0.1,1815.9,1815.6,5.50776]
[1743389910802,6.31235,1815.8,1815.4,16.81663]
[1743389911130,0.8051,1815.8,1815.5,5.50806]
[1743389912028,0.8051,1815.8,1815.5,5.50799]
[1743389912698,5.50763,1815.7,1815.4,5.757]
[1743389912923,0.8051,1815.8,1815.4,5.757]
[1743389912924,6.31252,1815.8,1815.4,11.2652]
[1743389913129,1.8614184,1815.8,1815.4,11.2652]
[1743389913296,5.50752,1815.7,1815.4,5.757]
[1743389913701,11.40752,1815.7,1815.4,5.757]
[1743389914206,5.9,1815.7,1815.5,5.50808]
[1743389915429,5.9,1815.7,1815.6,5.50782]
[1743389919444,0.1,1815.9,1815.7,5.50736]
[1743389919654,0.1,1815.9,1815.7,11.01472]
[1743389920440,0.1,1815.9,1815.8,5.50721]
[1743389921334,0.1,1815.9,1815.7,5.50736]
[1743389921647,0.1,1815.9,1815.7,11.01466]
[1743389921830,0.1,1815.9,1815.8,5.71]
[1743389923252,0.1,1815.9,1815.8,11.21721]
[1743389925153,0.1,1815.9,1815.8,12.00681]
[1743389925365,2.35659671,1816.7,1816.6,5.50478]
[1743389925925,1.12005442,1816.7,1816.6,5.50478]
[1743389926456,0.7553,1816.8,1816.6,5.50478]
[1743389926854,0.7553,1816.8,1816.6,11.00935]
[1743389927038,0.1,1816.9,1816.5,5.733]
[1743389927232,0.1,1816.9,1816.7,5.50423]
[1743389927425,0.1,1816.9,1816.8,5.728]
[1743389928169,0.1,1816.9,1816.5,5.50502]
[1743389928330,0.1,1816.9,1816.6,5.722]
[1743389928859,5.98945,1816.9,1816.4,5.50518]
[1743389929158,5.50427,1816.8,1816.5,5.721]
[1743389929546,5.98945,1816.9,1816.5,5.721]
[1743389929733,5.98945,1816.9,1816.5,11.226]
[1743389930130,5.98945,1816.9,1816.4,11.21918]
[1743389930131,1.354245,1816.8,1816.4,11.21918]
[1743389930355,1.354245,1816.8,1816.4,16.72433]
[1743389930763,6.858425,1816.8,1816.4,11.21915]
[1743389930966,6.858425,1816.8,1816.4,16.72442]
[1743389931343,12.758425,1816.8,1816.4,16.72442]
[1743389931537,5.98945,1816.9,1816.5,0.7896]
[1743389931538,0.1,1816.9,1816.5,0.7896]
[1743389931749,0.1,1816.9,1816.6,11.24678]
[1743389932060,0.1,1816.9,1816.6,11.24657]
[1743389932263,0.1,1816.9,1816.7,5.5043]
[1743389933061,0.1,1816.9,1816.7,11.00857]
[1743389933457,0.1,1816.9,1816.8,5.50418]
[1743389933633,0.1,1816.9,1816.7,11.00863]
[1743389934435,0.1,1816.9,1816.7,5.726]
[1743389934852,0.1,1816.9,1816.7,11.23045]
[1743389935761,0.1,1816.9,1816.7,11.23033]
[1743389935954,0.1,1816.9,1816.8,5.50418]
[1743389937665,0.1,1816.9,1816.7,5.50433]
[1743389937875,0.1,1816.9,1816.7,11.21433]
[1743389938365,0.1,1816.9,1816.7,16.71869]
[1743389938569,0.1,1816.9,1816.7,11.21433]
[1743389938798,0.1,1816.9,1816.8,5.50418]
[1743389939464,0.1,1816.9,1816.7,11.21433]
[1743389939639,0.1,1816.9,1816.7,16.71859]
[1743389941157,0.1,1816.9,1816.8,5.50418]
[1743389941362,0.9237,1816.9,1816.6,5.50477]
[1743389941557,0.9237,1816.9,1816.7,5.50444]
[1743389941758,5.50583,1816.3,1815.7,0.819]
[1743389941964,11.406,1816.2,1815.7,11.83377]
[1743389942270,11.40604,1816.2,1815.8,5.50706]
[1743389942456,5.9,1816.2,1815.9,5.50683]
[1743389942659,11.40609,1816.2,1815.8,5.50706]
[1743389943045,5.9,1816.2,1816.1,5.5063]
[1743389943249,5.9,1816.5,1816.1,6.2618]
[1743389943646,11.40523,1816.5,1816.0,16.7652]
[1743389943845,11.40523,1816.5,1816.0,11.2586]
[1743389944068,5.50553,1816.4,1816.0,11.2586]
[1743389944649,5.50573,1816.3,1815.9,5.5069]
[1743389944855,0.8196,1816.2,1816.0,5.748]
[1743389946873,5.50553,1816.4,1816.0,11.25458]
[1743389947274,12.22469,1816.5,1816.1,5.50614]
[1743389947596,5.50548,1816.4,1816.0,11.25446]
[1743389948821,11.01115,1816.4,1816.0,5.748]
[1743389949900,5.50616,1816.2,1815.7,7.34894317]
[1743389950121,5.50676,1816.0,1815.8,5.719]
[1743389950601,11.83274,1816.1,1815.8,5.719]
[1743389950814,6.32617,1816.1,1815.8,5.719]
[1743389951276,0.8196,1816.1,1815.8,5.719]
[1743389951479,0.8196,1816.1,1815.8,11.22608]
[1743389951674,0.8196,1816.1,1815.8,5.719]
[1743389952277,11.40605,1816.2,1815.8,11.22609]
[1743389954179,5.9,1816.2,1815.9,5.50687]
[1743389954497,5.9,1816.2,1815.9,6.30969]
[1743389955374,11.40611,1816.2,1815.9,0.8028]
[1743389955576,5.50631,1816.1,1815.8,5.719]
[1743389956277,11.40611,1816.2,1815.8,11.22617]
[1743389956475,11.40611,1816.2,1815.8,16.73327]
[1743389956671,11.40611,1816.2,1815.8,11.2261]
[1743389958010,11.40611,1816.2,1815.8,16.73309]
[1743389959180,16.91234,1816.2,1815.8,11.22599]
[1743389960309,11.40611,1816.2,1815.8,11.22599]
[1743389961015,5.9,1816.2,1815.9,5.50687]
[1743389962411,11.40606,1816.2,1815.8,11.22614]
[1743389962580,16.91228,1816.2,1815.8,11.22614]
[1743389964413,5.50642,1816.1,1815.8,5.648]
[1743389965610,13.179208,1816.2,1815.8,11.15521]
[1743389965812,18.685488,1816.2,1815.8,11.15521]
[1743389966013,18.685498,1816.2,1815.8,11.15521]
[1743389966417,5.9,1816.2,1816.0,5.50647]
[1743389967111,5.9,1816.2,1815.9,5.50684]
[1743389971014,11.40602,1816.2,1815.9,5.50684]
[1743389971415,5.9,1816.2,1815.9,5.50684]
[1743389973531,11.40601,1816.2,1815.9,5.50684]
[1743389973905,11.40601,1816.2,1815.8,11.15518]
[1743389976923,5.50601,1816.2,1815.8,11.15518]
[1743389977422,5.50601,1816.2,1815.8,5.648]
[1743389977724,5.50633,1816.1,1815.8,5.648]
[1743389977922,5.50633,1816.1,1815.8,11.15519]
[1743389978440,5.50601,1816.2,1815.8,11.15519]
[1743389979509,5.50641,1816.1,1815.8,5.648]
[1743389980724,5.50602,1816.2,1815.8,11.15511]
[1743389980904,5.50633,1816.1,1815.8,5.648]
[1743389982837,0.8196,1816.3,1815.8,11.1551]
[1743389983039,5.50633,1816.1,1815.8,5.648]
[1743389983343,5.50736,1815.8,1815.5,0.7702]
[1743389983518,11.01487,1815.8,1815.5,5.598]
[1743389983703,5.50736,1815.8,1815.5,5.598]
[1743389985731,3.0,1815.8,1815.5,5.598]
[1743389985931,3.0,1815.8,1815.5,11.106]
[1743389986125,8.50735,1815.8,1815.4,37.29833]
[1743389986442,8.50735,1815.8,1815.5,5.599]
[1743389990043,3.0,1815.8,1815.5,11.10683]
[1743389990219,3.0,1816.0,1815.6,5.50763]
[1743389990546,8.50675,1816.0,1815.5,11.10704]
[1743389990843,8.50675,1816.0,1815.6,5.50769]
[1743389991163,0.8025,1816.3,1815.9,5.5068]
[1743389991379,11.01227,1816.2,1815.9,5.599]
[1743389991657,3.0,1816.1,1815.9,5.599]
[1743389994460,11.01224,1816.2,1815.9,5.599]
[1743389995368,5.50602,1816.2,1815.9,5.599]
[1743389995664,3.0,1816.1,1815.9,5.599]
[1743389998184,3.0,1816.1,1815.9,11.10589]
[1743390000371,3.0,1816.1,1815.9,5.599]
[1743390001053,3.0,1816.3,1816.0,5.5064]
[1743390001452,3.0,1816.3,1816.0,6.2865]
[1743390001989,0.833,1816.5,1816.1,5.50611]
[1743390002159,11.43282123,1816.6,1816.2,5.50579]
[1743390002474,0.833,1816.7,1816.3,5.50548]
[1743390002662,3.0,1816.5,1816.3,5.598]
[1743390003064,8.5052,1816.5,1816.3,5.598]
[1743390003270,9.33891,1816.3,1816.0,5.598]
[1743390005740,3.0,1816.3,1816.0,11.10459]
[1743390006248,3.0,1816.5,1816.1,6.28626]
[1743390006442,3.0,1816.5,1816.2,5.50586]
[1743390007472,0.833,1816.7,1816.3,5.50558]
[1743390007650,3.833,1816.7,1816.3,5.50558]
[1743390008260,9.33749,1816.7,1816.3,5.50558]
[1743390008656,5.50481,1816.6,1816.2,5.506]
[1743390009379,0.933,1816.9,1816.2,5.506]
[1743390009546,3.0,1816.7,1816.3,5.597]
[1743390009885,3.0,1816.8,1816.4,5.50515]
[1743390010186,3.0,1816.8,1816.4,11.01039]
[1743390010353,0.933,1816.9,1816.6,5.50458]
[1743390010552,0.933,1816.9,1816.5,5.50509]
[1743390010553,0.1,1816.9,1816.7,5.597]
[1743390010785,0.1,1816.9,1816.7,11.10147]
[1743390010983,0.1,1816.9,1816.8,5.50418]
[1743390011191,0.1,1816.9,1816.8,6.28428]
[1743390011395,0.1,1816.9,1816.8,0.7801]
[1743390011697,0.1,1816.9,1816.8,5.597]
[1743390012080,0.1,1816.9,1816.8,11.10118]
[1743390015318,0.1,1816.9,1816.8,11.88128]
[1743390016524,0.1,1816.9,1816.8,12.29448991]
[1743390016875,0.1,1816.9,1816.8,6.28428]
[1743390017080,0.1,1816.9,1816.8,11.87928]
[1743390017416,0.1,1816.9,1816.8,6.28428]
[1743390017619,0.1,1816.9,1816.8,11.87928]
[1743390017820,0.1,1816.9,1816.8,6.28428]
[1743390018023,0.1,1816.9,1816.8,11.87928]
[1743390018825,0.1,1816.9,1816.8,11.87828]
[1743390020314,0.1,1816.9,1816.8,7.40393491]
[1743390020525,0.1,1816.9,1816.8,5.594]
[1743390020883,0.1,1816.9,1816.6,31.788]
[1743390021219,0.1,1816.9,1816.7,5.594]
[1743390021220,3.7681,1816.8,1816.7,5.594]
[1743390021437,3.7681,1816.8,1816.6,31.788]
[1743390021438,9.27241,1816.8,1816.6,31.788]
[1743390021727,10.760043,1816.8,1816.6,31.788]
[1743390021882,0.1,1816.9,1816.7,5.50448]
[1743390022077,0.1,1816.9,1816.8,5.50418]
[1743390022282,0.1,1816.9,1816.7,5.50448]
[1743390022506,0.1,1816.9,1816.8,5.50418]
[1743390024311,0.1,1816.9,1816.7,5.50427]
[1743390024526,0.1,1816.9,1816.8,5.50418]
[1743390024679,0.1,1816.9,1816.7,5.50427]
[1743390024885,0.1,1816.9,1816.8,5.594]
[1743390025429,0.1,1816.9,1816.8,11.09818]
[1743390026096,0.8681,1816.9,1816.7,5.593]
[1743390026503,0.8681,1816.9,1816.7,11.09721]
[1743390026690,0.8681,1816.9,1816.7,5.593]
[1743390026888,0.8681,1816.9,1816.6,42.88574]
[1743390028124,0.8681,1816.9,1816.6,11.09774]
[1743390028328,5.50418,1816.8,1816.4,5.50536]
[1743390028521,5.50451,1816.7,1816.3,5.50552]
[1743390028700,3.0,1816.7,1816.5,5.593]
[1743390029312,3.8681,1816.9,1816.5,11.09797]
[1743390029619,3.0,1816.8,1816.5,11.09797]
[1743390029820,3.937216,1816.8,1816.4,5.50532]
[1743390030036,0.937216,1816.8,1816.4,5.593]
[1743390030190,3.0,1816.7,1816.4,11.09836]
[1743390031192,0.8681,1816.9,1816.6,5.50478]
[1743390031826,6.37209,1816.9,1816.5,5.50507]
[1743390031990,0.8681,1816.9,1816.6,5.50477]
[1743390032192,0.1,1816.9,1816.7,5.50446]
[1743390032713,0.1,1816.9,1816.8,5.50418]
[1743390033230,0.1,1816.9,1816.7,5.50446]
[1743390034417,0.1,1816.9,1816.7,5.594]
[1743390034621,0.96036,1816.9,1816.7,5.594]
[1743390034818,0.1,1816.9,1816.4,15.3306]
[1743390035126,9.308,1816.5,1816.2,37.368]
[1743390036096,3.8029,1816.5,1816.2,42.87395]
[1743390036328,0.40798424,1816.6,1816.3,5.50566]
[1743390036627,9.30754,1816.7,1816.3,5.50566]
[1743390036799,15.743064,1816.7,1816.3,5.50566]
[1743390036995,5.5048,1816.6,1816.2,42.87393]
[1743390037533,14.81228,1816.7,1816.3,5.50558]
[1743390037716,5.50481,1816.6,1816.2,42.87393]
[1743390037901,3.8029,1816.4,1816.2,37.368]
[1743390039698,3.0,1816.4,1816.2,48.37968]
[1743390039903,3.0,1816.4,1816.3,5.50569]
[1743390040104,3.0,1816.4,1816.2,42.8738]
[1743390040312,3.0,1816.4,1816.3,5.50569]
[1743390041252,6.05,1816.5,1816.4,5.50539]
[1743390041453,0.1,1816.9,1816.7,5.50444]
[1743390041608,0.1,1816.9,1816.6,11.09878]
[1743390041808,3.1,1816.9,1816.6,5.594]
[1743390042226,0.1,1816.9,1816.7,5.50427]
[1743390043854,0.1,1816.9,1816.7,5.50426]
[1743390044139,0.1,1816.9,1816.8,5.50418]
[1743390046518,0.1,1816.9,1816.7,11.0086]
[1743390046717,0.1,1816.9,1816.8,5.50418]
[1743390049463,3.1,1816.9,1816.6,6.33538]
[1743390049614,3.1,1816.9,1816.8,5.593]
[1743390049953,3.960361,1816.9,1816.8,5.593]
[1743390050310,0.7579,1816.8,1816.3,37.28555]
[1743390050616,3.0,1816.6,1816.4,11.09836]
[1743390051425,3.0,1816.6,1816.4,5.593]
[1743390052547,3.0,1816.6,1816.3,31.78]
[1743390052755,0.7579,1816.5,1816.3,37.373]
[1743390053121,6.26311,1816.5,1816.3,37.373]
[1743390053320,3.0,1816.4,1816.3,31.78]
[1743390053522,8.50539,1816.4,1816.3,31.78]
[1743390053747,3.0,1816.4,1816.3,31.78]
[1743390055167,16.086701,1816.4,1816.3,31.78]
[1743390055738,9.05,1816.4,1816.3,31.78]
[1743390058771,9.05,1816.4,1816.2,5.593]
[1743390058967,14.55542,1816.4,1815.9,6.60293606]
[1743390059168,8.50617,1816.2,1815.9,5.593]
[1743390059367,5.006197,1816.2,1815.9,5.593]
[1743390059670,3.0,1816.2,1815.9,5.593]
[1743390059858,6.05,1816.3,1816.2,5.506]
[1743390060058,9.05,1816.3,1816.2,5.506]
[1743390060386,9.05,1816.3,1816.1,5.50626]
[1743390062271,9.05,1816.3,1816.2,5.506]
[1743390062446,9.05,1816.3,1816.1,5.50626]
[1743390062447,9.05,1816.3,1816.1,11.01243]
[1743390063071,9.05,1816.3,1816.2,5.506]
[1743390063371,3.0,1816.3,1816.2,5.506]
[1743390064073,6.05,1816.6,1816.3,5.50568]
[1743390064290,6.27645,1816.7,1816.3,11.09853]
[1743390064291,12.32645,1816.7,1816.3,11.09853]
[1743390064449,3.0,1816.6,1816.3,11.09853]
[1743390064978,10.037505,1816.6,1816.3,5.593]
[1743390065978,5.50583,1816.3,1815.9,5.50675]
[1743390066151,8.50618,1816.2,1815.9,5.592]
[1743390066653,3.0,1816.2,1815.8,31.781]
[1743390066860,9.27881,1815.9,1815.8,31.781]
[1743390067071,15.32881,1815.9,1815.8,31.781]
[1743390067464,5.50724,1815.8,1815.4,5.50842]
[1743390067676,15.32881,1815.9,1815.6,5.592]
[1743390067880,20.83596,1815.9,1815.6,5.592]
[1743390068182,5.50751,1815.7,1815.6,5.592]
[1743390068481,17.412526,1815.9,1815.6,5.592]
[1743390068974,5.50722,1815.8,1815.5,5.592]
[1743390069192,3.0,1815.6,1815.5,5.592]
[1743390069805,8.50795,1815.6,1815.2,6.60685015]
[1743390070098,9.8219,1815.6,1815.3,5.593]
[1743390070249,9.8219,1815.6,1815.3,11.10159]
[1743390070455,9.05,1815.6,1815.5,5.50812]
[1743390070859,11.96095102,1816.2,1815.8,5.50708]
[1743390071083,0.31064433,1816.1,1815.9,5.5067]
[1743390071287,3.0,1816.3,1815.9,11.01345]
[1743390071484,3.0,1816.3,1816.0,5.50652]
[1743390072860,3.0,1816.3,1815.9,11.01347]
[1743390073187,3.0,1816.3,1816.0,5.50657]
[1743390073688,6.27729,1816.4,1816.0,5.50657]
[1743390073689,3.7719,1816.4,1816.1,5.5063]
[1743390074057,6.8219,1816.4,1816.1,5.5063]
[1743390074264,3.0,1816.3,1816.0,5.50657]
[1743390074691,3.0,1816.3,1816.1,11.09926]
[1743390076286,3.0,1816.3,1816.2,0.781]
[1743390076578,3.0,1816.3,1816.2,6.287]
[1743390076782,8.50572,1816.3,1815.9,5.50662]
[1743390076981,0.7928,1816.2,1815.9,5.50662]
[1743390077175,0.7928,1816.2,1815.9,11.09962]
[1743390077377,0.7928,1816.2,1815.9,16.60635]
[1743390077675,3.0,1816.3,1816.0,11.01278]
[1743390078192,3.0,1816.3,1816.1,5.50627]
[1743390078390,3.0,1816.3,1816.0,5.5066]
[1743390078594,3.0,1816.3,1816.1,5.50605]
[1743390079204,3.0,1816.3,1816.0,11.01301]
[1743390079571,3.0,1816.3,1815.9,11.09989]
[1743390079770,8.50581,1816.3,1815.9,11.09989]
[1743390080495,8.50581,1816.3,1815.9,5.50689]
[1743390080670,16.097146,1816.3,1815.9,5.50689]
[1743390080870,5.50653,1816.1,1815.8,0.781]
[1743390081098,5.50694,1815.9,1815.7,37.382]
[1743390081297,3.7928,1816.1,1815.7,37.382]
[1743390081668,9.29922,1816.1,1815.7,42.88938]
[1743390081896,11.04991923,1816.1,1815.7,42.88938]
[1743390082572,0.7928,1816.1,1815.8,0.781]
[1743390082898,11.55577,1816.3,1816.0,5.50653]
[1743390082899,3.0,1816.2,1816.0,5.50653]
[1743390084203,3.0,1816.2,1815.9,5.5069]
[1743390084378,3.0,1816.2,1816.0,5.50656]
[1743390086869,3.0,1816.2,1816.1,5.5063]
[1743390087102,3.0,1816.2,1816.0,5.50656]
[1743390087286,3.0,1816.2,1816.0,5.50639]
[1743390088298,3.0,1816.2,1816.1,5.5063]
[1743390088598,6.05,1816.7,1816.6,6.27408]
[1743390088800,1.08181567,1816.8,1816.7,5.50448]
[1743390089140,4.54289245,1817.0,1816.8,5.50418]
[1743390089825,6.05,1817.1,1816.8,5.50418]
[1743390090222,3.0,1817.0,1816.8,5.50418]
[1743390090722,6.05,1817.1,1816.8,5.50418]
[1743390090903,6.05,1817.1,1816.8,6.27348]
[1743390091101,3.0,1817.0,1816.8,6.27348]
[1743390091521,3.0,1817.0,1816.8,11.86448]
[1743390092507,3.812,1817.4,1816.8,11.86448]
[1743390093232,6.05,1817.5,1816.8,11.86448]
[1743390093837,3.0,1817.4,1816.8,12.41448]
[1743390095940,6.862,1817.6,1816.8,12.41448]
[1743390096113,6.05,1817.6,1816.8,12.41448]
[1743390096314,3.0,1817.5,1816.8,12.41448]
[1743390096737,3.0,1817.5,1816.8,26.91448]
[1743390097443,6.05,1817.6,1816.8,26.91448]
[1743390098236,0.812,1817.8,1816.8,26.91448]
[1743390098611,0.09449597,1816.9,1816.8,26.91448]
[1743390100329,0.09449597,1816.9,1816.8,21.32348]
[1743390100654,0.09449597,1816.9,1816.8,21.73203998]
[1743390100862,0.09449597,1816.9,1816.8,6.27348]
[1743390101068,0.09449597,1816.9,1816.8,11.86148]
[1743390102617,0.09449597,1816.9,1816.8,11.09218]
[1743390103312,0.09449597,1816.9,1816.8,5.50418]
[1743390103520,0.09449597,1816.9,1816.8,11.09118]
[1743390103714,0.09449597,1816.9,1816.8,5.587]
[1743390104355,0.09449597,1816.9,1816.8,11.09118]
[1743390104515,0.09449597,1816.9,1816.8,5.587]
[1743390104717,0.09449597,1816.9,1816.8,11.09118]
[1743390104917,0.09449597,1816.9,1816.8,5.50418]
[1743390105151,0.09449597,1816.9,1816.8,11.09118]
[1743390106052,0.09449597,1816.9,1816.8,5.587]
[1743390108451,0.09449597,1816.9,1816.8,11.09118]
[1743390108642,0.09449597,1816.9,1816.8,11.90258]
[1743390109245,0.09449597,1816.9,1816.8,26.40258]
[1743390109440,0.09449597,1816.9,1816.8,26.95258]
[1743390109745,0.09449597,1816.9,1816.8,26.40258]
[1743390111559,0.09449597,1816.9,1816.8,26.95258]
[1743390111758,0.09449597,1816.9,1816.8,58.72358]
[1743390112132,0.09449597,1816.9,1816.8,38.08658]
[1743390112447,0.09449597,1816.9,1816.8,42.86118]
[1743390112647,0.09449597,1816.9,1816.8,57.36118]
[1743390113234,0.09449597,1816.9,1816.8,42.86118]
[1743390115234,0.09449597,1816.9,1816.8,44.22258]
[1743390115848,0.09449597,1816.9,1816.8,44.64637775]
[1743390116043,0.09449597,1816.9,1816.8,59.14637775]
[1743390117364,5.97e-06,1816.9,1816.8,59.14637775]
[1743390117668,5.97e-06,1816.9,1816.8,53.56037775]
[1743390117967,5.97e-06,1816.9,1816.8,59.14537775]
[1743390121039,5.97e-06,1816.9,1816.8,62.14537775]
[1743390121865,0.8203,1817.8,1817.7,5.50145]
[1743390122066,0.8203,1817.8,1817.7,11.08545]
[1743390123139,0.1,1817.9,1817.8,5.50115]